fUSD/lending_fUSD_20240831
["ID","MTS","AMOUNT","RATE_DAILY","PERIOD"]
[336729733,1725085309127,-500.0,0.00041095,120]
[336729734,1725085309177,-500.0,0.00041095,120]
[336729735,1725085309230,-500.0,0.00041095,120]
[336729736,1725085309285,-500.0,0.00041095,120]
[336729737,1725085309339,-500.0,0.00041095,120]
[336729738,1725085309391,-500.0,0.00041095,120]
[336729739,1725085309444,-500.0,0.00041095,120]
[336729740,1725085309496,-500.0,0.00041095,120]
[336729741,1725085309547,-500.0,0.00041095,120]
[336729742,1725085309600,-970.41,0.00041095,120]
[336729743,1725085309654,-500.0,0.00041095,120]
[336729744,1725085309706,-500.0,0.00041095,120]
[336729745,1725085309758,-1254.2,0.00041095,120]
[336729746,1725085309807,-2064.59,0.00041095,120]
[336729747,1725085309861,-500.0,0.00041095,120]
[336729748,1725085309916,-1831.01,0.00041095,120]
[336729749,1725085309966,-1397.22,0.00041095,120]
[336729750,1725085310021,-500.0,0.00041095,120]
[336729751,1725085310072,-2245.78,0.00041095,120]
[336729752,1725085310122,-500.0,0.00041095,120]
[336729753,1725085310171,-1552.31,0.00041095,120]
[336729754,1725085310223,-2597.83,0.00041095,120]
[336729755,1725085310274,-500.0,0.00041095,120]
[336729756,1725085310324,-1035.53,0.00041095,120]
[336729757,1725085310375,-500.0,0.00041095,120]
[336729758,1725085310427,-744.82,0.00041095,120]
[336729759,1725085310476,-500.0,0.00041095,120]
[336729760,1725085310525,-696.59,0.00041095,120]
[336729761,1725085310577,-673.61,0.00041095,120]
[336729762,1725085310631,-150.0,0.00041095,120]
[336729763,1725085310683,-1520.87,0.00041095,120]
[336729764,1725085310737,-582.5,0.00041095,120]
[336729765,1725085310791,-500.0,0.00041095,120]
[336729766,1725085310845,-531.38,0.00041095,120]
[336729767,1725085310898,-1554.54,0.00041095,120]
[336729768,1725085310954,-1271.21,0.00041095,120]
[336729769,1725085311011,-506.46,0.00041095,120]
[336729770,1725085311069,-500.0,0.00041095,120]
[336729771,1725085311125,-500.0,0.00041095,120]
[336729772,1725085311180,-500.0,0.00041095,120]
[336729773,1725085311237,-525.09,0.00041095,120]
[336729774,1725085311295,-917.3,0.00041095,120]
[336729775,1725085311351,-500.0,0.00041095,120]
[336729776,1725085311406,-500.0,0.00041095,120]
[336729777,1725085311459,-500.0,0.00041095,120]
[336729778,1725085311511,-996.95,0.00041095,120]
[336729779,1725085311563,-696.4,0.00041095,120]
[336729780,1725085311619,-500.0,0.00041095,120]
[336729781,1725085311671,-803.74,0.00041095,120]
[336729782,1725085311724,-748.83,0.00041095,120]
[336729783,1725085311778,-200.6452578,0.00041095,120]
[336729784,1725085311831,-504.16420568,0.00041095,120]
[336729785,1725085311883,-603.75072759,0.00041095,120]
[336729786,1725085311938,-500.0,0.00041095,120]
[336729787,1725085311988,-568.05,0.00041095,120]
[336729788,1725085312038,-1168.88,0.00041095,120]
[336729789,1725085312091,-761.86,0.00041095,120]
[336729790,1725085312140,-991.52,0.00041095,120]
[336729791,1725085312190,-500.0,0.00041095,120]
[336729792,1725085312241,-500.0,0.00041095,120]
[336729793,1725085312291,-1384.4,0.00041095,120]
[336729794,1725085312343,-731.6,0.00041095,120]
[336729795,1725085312393,-500.0,0.00041095,120]
[336729796,1725085312444,-2458.49,0.00041095,120]
[336729797,1725085312495,-500.0,0.00041095,120]
[336729798,1725085312546,-500.0,0.00041095,120]
[336729799,1725085312599,-540.27,0.00041095,120]
[336729800,1725085312652,-500.0,0.00041095,120]
[336729801,1725085312703,-500.0,0.00041095,120]
[336729802,1725085312754,-500.0,0.00041095,120]
[336729803,1725085312806,-2118.23,0.00041095,120]
[336729804,1725085313037,-600.38,0.00041095,120]
[336729805,1725085313088,-522.69,0.00041095,120]
[336729806,1725085313141,-1210.64,0.00041095,120]
[336729807,1725085313193,-500.0,0.00041095,120]
[336729808,1725085313254,-501.73450124,0.00041095,120]
[336729809,1725085313309,-500.0,0.00041095,120]
[336729810,1725085313364,-500.0,0.00041095,120]
[336729811,1725085313422,-1856.52,0.00041095,120]
[336729812,1725085313477,-500.0,0.00041095,120]
[336729813,1725085313532,-500.0,0.00041095,120]
[336729814,1725085313587,-500.0,0.00041095,120]
[336729815,1725085313642,-856.67,0.00041095,120]
[336729816,1725085313698,-1905.46,0.00041095,120]
[336729817,1725085313751,-514.23161701,0.00041095,120]
[336729818,1725085313805,-1521.24,0.00041095,120]
[336729819,1725085313857,-500.0,0.00041095,120]
[336729820,1725085313913,-547.37,0.00041095,120]
[336729821,1725085313965,-500.0,0.00041095,120]
[336729822,1725085314015,-660.11,0.00041095,120]
[336729823,1725085314068,-2325.34,0.00041095,120]
[336729824,1725085314122,-501.74,0.00041095,120]
[336729825,1725085314172,-849.88,0.00041095,120]
[336729826,1725085314226,-2388.65,0.00041095,120]
[336729827,1725085314280,-500.0,0.00041095,120]
[336729828,1725085314333,-2070.59,0.00041095,120]
[336729829,1725085314387,-500.0,0.00041095,120]
[336729830,1725085314446,-1982.62,0.00041095,120]
[336729831,1725085314498,-500.0,0.00041095,120]
[336729832,1725085314557,-500.0,0.00041095,120]
[336729833,1725085314614,-500.0,0.00041095,120]
[336729834,1725085314668,-500.0,0.00041095,120]
[336729835,1725085314720,-2073.66,0.00041095,120]
[336729836,1725085314773,-500.0,0.00041095,120]
[336729837,1725085314830,-909.97,0.00041095,120]
[336729838,1725085314880,-500.0,0.00041095,120]
[336729839,1725085314932,-523.5,0.00041095,120]
[336729840,1725085314983,-500.0,0.00041095,120]
[336729841,1725085315033,-500.0,0.00041095,120]
[336729842,1725085315085,-2189.52,0.00041095,120]
[336729843,1725085315138,-500.0,0.00041095,120]
[336729844,1725085315190,-500.0,0.00041095,120]
[336729845,1725085315242,-1371.6,0.00041095,120]
[336729846,1725085315294,-804.7,0.00041095,120]
[336729847,1725085315347,-1112.52,0.00041095,120]
[336729848,1725085315398,-500.0,0.00041095,120]
[336729849,1725085315450,-2039.92,0.00041095,120]
[336729850,1725085315503,-964.65,0.00041095,120]
[336729851,1725085315554,-500.0,0.00041095,120]
[336729852,1725085315606,-639.04177805,0.00041095,120]
[336729853,1725085315661,-500.0,0.00041095,120]
[336729854,1725085315715,-500.0,0.00041095,120]
[336729855,1725085315766,-1312.09,0.00041095,120]
[336729856,1725085315819,-500.0,0.00041095,120]
[336729857,1725085315877,-500.0,0.00041095,120]
[336729858,1725085315929,-1782.75,0.00041095,120]
[336729859,1725085315981,-500.0,0.00041095,120]
[336729860,1725085316036,-1702.92,0.00041095,120]
[336729861,1725085316089,-1029.68,0.00041095,120]
[336729862,1725085316143,-500.0,0.00041095,120]
[336729863,1725085316201,-2092.19,0.00041095,120]
[336729864,1725085316255,-1324.2,0.00041095,120]
[336729865,1725085316308,-500.0,0.00041095,120]
[336729866,1725085316361,-500.0,0.00041095,120]
[336729867,1725085316417,-500.0,0.00041095,120]
[336729868,1725085316470,-500.0,0.00041095,120]
[336729869,1725085316524,-687.53,0.00041095,120]
[336729870,1725085316578,-500.0,0.00041095,120]
[336729871,1725085316633,-1577.57,0.00041095,120]
[336729872,1725085316687,-1633.84,0.00041095,120]
[336729873,1725085316741,-927.35,0.00041095,120]
[336729874,1725085316797,-500.0,0.00041095,120]
[336729875,1725085316850,-500.0,0.00041095,120]
[336729876,1725085316903,-500.0,0.00041095,120]
[336729877,1725085316954,-500.0,0.00041095,120]
[336729878,1725085317008,-500.0,0.00041095,120]
[336729879,1725085317059,-500.0,0.00041095,120]
[336729880,1725085317109,-500.0,0.00041095,120]
[336729881,1725085317161,-1255.1,0.00041095,120]
[336729882,1725085317211,-961.72,0.00041095,120]
[336729883,1725085317264,-500.0,0.00041095,120]
[336729884,1725085317315,-500.0,0.00041095,120]
[336729885,1725085317367,-500.0,0.00041095,120]
[336729886,1725085317417,-397.2005586,0.00041095,120]
[336729887,1725085317467,-553.73,0.00041095,120]
[336729888,1725085317521,-793.38,0.00041095,120]
[336729889,1725085317574,-500.0,0.00041095,120]
[336729890,1725085317624,-2218.72,0.00041095,120]
[336729891,1725085317682,-1344.82,0.00041095,120]
[336729892,1725085317734,-500.0,0.00041095,120]
[336729893,1725085317788,-500.0,0.00041095,120]
[336729894,1725085317841,-500.0,0.00041095,120]
[336729895,1725085317894,-846.91,0.00041095,120]
[336729896,1725085317951,-500.0,0.00041095,120]
[336729897,1725085318007,-1968.84,0.00041095,120]
[336729898,1725085318060,-500.0,0.00041095,120]
[336729899,1725085318114,-1518.96,0.00041095,120]
[336729900,1725085318167,-1835.9,0.00041095,120]
[336729901,1725085318222,-1044.01,0.00041095,120]
[336729902,1725085318274,-603.33,0.00041095,120]
[336729903,1725085318328,-2179.57,0.00041095,120]
[336729904,1725085318382,-805.02,0.00041095,120]
[336729905,1725085318437,-500.0,0.00041095,120]
[336729906,1725085318491,-500.0,0.00041095,120]
[336729907,1725085318548,-1640.29,0.00041095,120]
[336729908,1725085318802,-1667.23,0.00041095,120]
[336729909,1725085318854,-500.0,0.00041095,120]
[336729910,1725085318904,-1646.21,0.00041095,120]
[336729911,1725085318955,-591.32,0.00041095,120]
[336729912,1725085319007,-795.81,0.00041095,120]
[336729913,1725085319058,-877.02,0.00041095,120]
[336729914,1725085319110,-2067.77,0.00041095,120]
[336729915,1725085319162,-608.39,0.00041095,120]
[336729916,1725085319214,-1275.11,0.00041095,120]
[336729917,1725085319270,-500.0,0.00041095,120]
[336729918,1725085319328,-500.0,0.00041095,120]
[336729919,1725085319383,-299.49047925,0.00041095,120]
[336729920,1725085319441,-402.26217742,0.00041095,120]
[336729921,1725085319500,-572.01,0.00041095,120]
[336729922,1725085319558,-500.0,0.00041095,120]
[336729923,1725085319614,-1704.35,0.00041095,120]
[336729924,1725085319672,-844.24,0.00041095,120]
[336729925,1725085319732,-500.0,0.00041095,120]
[336729926,1725085319790,-606.37,0.00041095,120]
[336729927,1725085319849,-1379.1,0.00041095,120]
[336729928,1725085319912,-2069.4,0.00041095,120]
[336729929,1725085319969,-500.0,0.00041095,120]
[336729930,1725085320031,-573.28,0.00041095,120]
[336729931,1725085320092,-1830.7,0.00041095,120]
[336729932,1725085320153,-500.0,0.00041095,120]
[336729933,1725085320213,-936.23,0.00041095,120]
[336729934,1725085320276,-505.41,0.00041095,120]
[336729935,1725085320342,-500.0,0.00041095,120]
[336729936,1725085320402,-565.82,0.00041095,120]
[336729937,1725085320459,-500.0,0.00041095,120]
[336729938,1725085320517,-500.0,0.00041095,120]
[336729939,1725085320576,-802.68,0.00041095,120]
[336729940,1725085320634,-1846.73,0.00041095,120]
[336729941,1725085320693,-500.0,0.00041095,120]
[336729942,1725085320749,-251.45025853,0.00041095,120]
[336729943,1725085320814,-500.0,0.00041095,120]
[336729944,1725085320874,-709.12,0.00041095,120]
[336729945,1725085320932,-1624.05,0.00041095,120]
[336729946,1725085320989,-1465.91,0.00041095,120]
[336729947,1725085321047,-508.15,0.00041095,120]
[336729948,1725085321107,-1707.44,0.00041095,120]
[336729949,1725085321162,-500.0,0.00041095,120]
[336729950,1725085321221,-500.0,0.00041095,120]
[336729951,1725085321278,-500.0,0.00041095,120]
[336729952,1725085321335,-829.84,0.00041095,120]
[336729953,1725085321391,-500.0,0.00041095,120]
[336729954,1725085321446,-695.91,0.00041095,120]
[336729955,1725085321503,-508.01,0.00041095,120]
[336729956,1725085321559,-500.0,0.00041095,120]
[336729957,1725085321615,-500.0,0.00041095,120]
[336729958,1725085321673,-500.0,0.00041095,120]
[336729959,1725085321729,-1694.24,0.00041095,120]
[336729960,1725085321787,-500.0,0.00041095,120]
[336729961,1725085321843,-1329.5,0.00041095,120]
[336729962,1725085321899,-310.56244164,0.00041095,120]
[336729963,1725085321959,-1254.74,0.00041095,120]
[336729964,1725085322014,-500.0,0.00041095,120]
[336729965,1725085322072,-701.74,0.00041095,120]
[336729966,1725085322129,-1718.9,0.00041095,120]
[336729967,1725085322189,-500.0,0.00041095,120]
[336729968,1725085322247,-500.0,0.00041095,120]
[336729969,1725085322304,-500.0,0.00041095,120]
[336729970,1725085322364,-536.3,0.00041095,120]
[336729971,1725085322422,-500.0,0.00041095,120]
[336729972,1725085322480,-500.0,0.00041095,120]
[336729973,1725085322544,-1416.58,0.00041095,120]
[336729974,1725085322606,-1344.35,0.00041095,120]
[336729975,1725085322667,-500.0,0.00041095,120]
[336729976,1725085322726,-1308.79,0.00041095,120]
[336729977,1725085322782,-1065.87,0.00041095,120]
[336729978,1725085322842,-598.48,0.00041095,120]
[336729979,1725085322898,-934.02,0.00041095,120]
[336729980,1725085322955,-1376.61,0.00041095,120]
[336729981,1725085323010,-1682.93,0.00041095,120]
[336729982,1725085323067,-1537.85,0.00041095,120]
[336729983,1725085323123,-546.73,0.00041095,120]
[336729984,1725085323178,-1026.63,0.00041095,120]
[336729985,1725085323239,-500.0,0.00041095,120]
[336729986,1725085323298,-1312.14,0.00041095,120]
[336729987,1725085323368,-500.0,0.00041095,120]
[336729988,1725085323427,-1653.03,0.00041095,120]
[336729989,1725085323487,-644.60760718,0.00041095,120]
[336729990,1725085323544,-500.0,0.00041095,120]
[336729991,1725085323601,-802.15,0.00041095,120]
[336729992,1725085323655,-522.63,0.00041095,120]
[336729993,1725085323711,-500.0,0.00041095,120]
[336729994,1725085323767,-500.0,0.00041095,120]
[336729995,1725085323821,-500.0,0.00041095,120]
[336729996,1725085323882,-520.04,0.00041095,120]
[336729997,1725085323934,-1148.46,0.00041095,120]
[336729998,1725085323987,-500.0,0.00041095,120]
[336729999,1725085324041,-554.41,0.00041095,120]
[336730000,1725085324093,-1325.16,0.00041095,120]
[336730001,1725085324150,-795.3,0.00041095,120]
[336730002,1725085324209,-1311.27,0.00041095,120]
[336730003,1725085324267,-1407.95,0.00041095,120]
[336730004,1725085324327,-500.0,0.00041095,120]
[336730005,1725085324384,-1863.91,0.00041095,120]
[336730006,1725085324441,-500.0,0.00041095,120]
[336730007,1725085324497,-1652.24,0.00041095,120]
[336730008,1725085324554,-641.76,0.00041095,120]
[336730009,1725085324615,-854.31,0.00041095,120]
[336730010,1725085324677,-500.0,0.00041095,120]
[336730011,1725085324732,-527.05,0.00041095,120]
[336730012,1725085324787,-500.0,0.00041095,120]
[336730013,1725085325011,-616.77,0.00041095,120]
[336730014,1725085325067,-956.29,0.00041095,120]
[336730015,1725085325122,-2261.76,0.00041095,120]
[336730016,1725085325177,-500.0,0.00041095,120]
[336730017,1725085325236,-675.48,0.00041095,120]
[336730018,1725085325293,-500.0,0.00041095,120]
[336730019,1725085325350,-500.0,0.00041095,120]
[336730020,1725085325404,-1000.0,0.00041095,120]
[336730021,1725085325461,-1000.0,0.00041095,120]
[336730022,1725085325517,-253.22952345,0.00041095,120]
[336730023,1725085325573,-979.96,0.00041095,120]
[336730024,1725085325628,-532.04,0.00041095,120]
[336730025,1725085325681,-1078.05,0.00041095,120]
[336730026,1725085325734,-1968.69,0.00041095,120]
[336730027,1725085325788,-528.35,0.00041095,120]
[336730028,1725085325843,-500.0,0.00041095,120]
[336730029,1725085325900,-500.0,0.00041095,120]
[336730030,1725085325960,-500.0,0.00041095,120]
[336730031,1725085326015,-500.0,0.00041095,120]
[336730032,1725085326069,-1332.09,0.00041095,120]
[336730033,1725085326125,-500.0,0.00041095,120]
[336730034,1725085326181,-876.79,0.00041095,120]
[336730035,1725085326237,-1367.12,0.00041095,120]
[336730036,1725085326295,-500.0,0.00041095,120]
[336730037,1725085326353,-2989.98,0.00041095,120]
[336730038,1725085326411,-1307.87,0.00041095,120]
[336730039,1725085326465,-500.0,0.00041095,120]
[336730040,1725085326519,-500.0,0.00041095,120]
[336730041,1725085326573,-1296.01,0.00041095,120]
[336730042,1725085326629,-1533.32,0.00041095,120]
[336730043,1725085326684,-500.0,0.00041095,120]
[336730044,1725085326739,-500.0,0.00041095,120]
[336730045,1725085326791,-500.0,0.00041095,120]
[336730046,1725085326850,-600.74,0.00041095,120]
[336730047,1725085326905,-5814.25,0.00041095,120]
[336730048,1725085326961,-629.87,0.00041095,120]
[336730049,1725085327016,-1062.71,0.00041095,120]
[336730050,1725085327071,-533.34,0.00041095,120]
[336730051,1725085327122,-1824.21,0.00041095,120]
[336730052,1725085327173,-1015.22,0.00041095,120]
[336730053,1725085327227,-173.90706436,0.00041095,120]
[336730054,1725085327284,-500.0,0.00041095,120]
[336730055,1725085327340,-951.23,0.00041095,120]
[336730056,1725085327395,-5481.44,0.00041095,120]
[336730057,1725085327452,-894.49,0.00041095,120]
[336730058,1725085327506,-842.88,0.00041095,120]
[336730059,1725085327561,-1186.34,0.00041095,120]
[336730060,1725085327616,-677.22,0.00041095,120]
[336730061,1725085327674,-500.0,0.00041095,120]
[336730062,1725085327728,-767.11,0.00041095,120]
[336730063,1725085327784,-5075.61,0.00041095,120]
[336730064,1725085327838,-862.19,0.00041095,120]
[336730065,1725085327894,-528.15,0.00041095,120]
[336730066,1725085327954,-825.37,0.00041095,120]
[336730067,1725085328012,-1653.61,0.00041095,120]
[336730068,1725085328065,-1753.96,0.00041095,120]
[336730069,1725085328119,-2000.96,0.00041095,120]
[336730070,1725085328174,-562.28,0.00041095,120]
[336730071,1725085328228,-500.0,0.00041095,120]
[336730072,1725085328283,-1013.59,0.00041095,120]
[336730073,1725085328339,-500.0,0.00041095,120]
[336730074,1725085328397,-1776.62,0.00041095,120]
[336730075,1725085328452,-500.0,0.00041095,120]
[336730076,1725085328511,-622.77610155,0.00041095,120]
[336730077,1725085328571,-500.0,0.00041095,120]
[336730078,1725085328632,-3910.3,0.00041095,120]
[336730079,1725085328689,-1570.05,0.00041095,120]
[336730080,1725085328745,-764.94,0.00041095,120]
[336730081,1725085328801,-500.0,0.00041095,120]
[336730082,1725085328857,-500.0,0.00041095,120]
[336730083,1725085328910,-500.0,0.00041095,120]
[336730084,1725085328965,-500.0,0.00041095,120]
[336730085,1725085329019,-500.0,0.00041095,120]
[336730086,1725085329074,-500.0,0.00041095,120]
[336730087,1725085329132,-883.9,0.00041095,120]
[336730088,1725085329190,-500.0,0.00041095,120]
[336730089,1725085329247,-696.93,0.00041095,120]
[336730090,1725085329304,-500.0,0.00041095,120]
[336730091,1725085329365,-307.2,0.00041095,120]
[336730092,1725085329419,-500.0,0.00041095,120]
[336730093,1725085329477,-500.0,0.00041095,120]
[336730094,1725085329532,-1372.32,0.00041095,120]
[336730095,1725085329587,-500.0,0.00041095,120]
[336730096,1725085329641,-833.92,0.00041095,120]
[336730097,1725085329696,-664.41,0.00041095,120]
[336730098,1725085329751,-1438.05,0.00041095,120]
[336730099,1725085329805,-500.0,0.00041095,120]
[336730100,1725085329861,-863.53,0.00041095,120]
[336730101,1725085329917,-785.33,0.00041095,120]
[336730102,1725085329969,-1603.72,0.00041095,120]
[336730103,1725085330022,-500.0,0.00041095,120]
[336730104,1725085330076,-500.0,0.00041095,120]
[336730105,1725085330129,-500.0,0.00041095,120]
[336730106,1725085330182,-2224.87,0.00041095,120]
[336730107,1725085330233,-500.0,0.00041095,120]
[336730108,1725085330289,-1322.92,0.00041095,120]
[336730109,1725085330342,-2404.44,0.00041095,120]
[336730110,1725085330394,-500.0,0.00041095,120]
[336730111,1725085330451,-901.41,0.00041095,120]
[336730112,1725085330506,-610.01,0.00041095,120]
[336730113,1725085330560,-729.12,0.00041095,120]
[336730114,1725085330612,-500.0,0.00041095,120]
[336730115,1725085330664,-1979.21,0.00041095,120]
[336730116,1725085330718,-577.81,0.00041095,120]
[336730117,1725085330943,-500.0,0.00041095,120]
[336730118,1725085330999,-6226.26,0.00041095,120]
[336730119,1725085331053,-666.11,0.00041095,120]
[336730120,1725085331110,-500.0,0.00041095,120]
[336730121,1725085331168,-500.0,0.00041095,120]
[336730122,1725085331224,-244.99334952,0.00041095,120]
[336730123,1725085331281,-2083.88,0.00041095,120]
[336730124,1725085331337,-2247.13,0.00041095,120]
[336730125,1725085331395,-500.0,0.00041095,120]
[336730126,1725085331451,-3075.22,0.00041095,120]
[336730127,1725085331507,-2368.94,0.00041095,120]
[336730128,1725085331564,-150.0,0.00041099,120]
[336730129,1725085331620,-1000.0,0.00041191,120]
[336730130,1725085331679,-151.0,0.00041233,120]
[336730131,1725085331738,-408.6793278,0.000414,120]
[336730132,1725085331794,-150.0,0.00041451,120]
[336730133,1725085331851,-1000.0,0.00041485,120]
[336730134,1725085331909,-2142.76,0.00041643,120]
[336730135,1725085331965,-500.0,0.00041643,120]
[336730136,1725085332019,-500.0,0.00041643,120]
[336730137,1725085332075,-500.0,0.00041643,120]
[336730138,1725085332129,-500.0,0.00041643,120]
[336730139,1725085332181,-500.0,0.00041643,120]
[336730140,1725085332234,-500.0,0.00041643,120]
[336730141,1725085332286,-500.0,0.00041643,120]
[336730142,1725085332340,-500.0,0.00041643,120]
[336730143,1725085332392,-500.0,0.00041643,120]
[336730144,1725085332444,-500.0,0.00041643,120]
[336730145,1725085332497,-500.0,0.00041643,120]
[336730146,1725085332550,-500.0,0.00041643,120]
[336730147,1725085332604,-500.0,0.00041643,120]
[336730148,1725085332655,-500.0,0.00041643,120]
[336730149,1725085332706,-970.41,0.00041643,120]
[336730150,1725085332756,-500.0,0.00041643,120]
[336730151,1725085332807,-500.0,0.00041643,120]
[336730152,1725085332856,-1254.2,0.00041643,120]
[336730153,1725085332910,-2064.59,0.00041643,120]
[336730154,1725085332963,-500.0,0.00041643,120]
[336730155,1725085333013,-1831.01,0.00041643,120]
[336730156,1725085333065,-1397.22,0.00041643,120]
[336730157,1725085333121,-500.0,0.00041643,120]
[336730158,1725085333171,-2245.78,0.00041643,120]
[336730159,1725085333222,-500.0,0.00041643,120]
[336730160,1725085333276,-1552.31,0.00041643,120]
[336730161,1725085333331,-2597.83,0.00041643,120]
[336730162,1725085333385,-500.0,0.00041643,120]
[336730163,1725085333440,-1035.53,0.00041643,120]
[336730164,1725085333497,-500.0,0.00041643,120]
[336730165,1725085333551,-744.82,0.00041643,120]
[336730166,1725085333604,-562.23920572,0.00041643,120]
[336730167,1725085333658,-696.59,0.00041643,120]
[336730168,1725085333711,-673.61,0.00041643,120]
[336730169,1725085333765,-150.0,0.00041643,120]
[336730170,1725085333820,-1520.87,0.00041643,120]
[336730171,1725085333877,-582.5,0.00041643,120]
[336730172,1725085333931,-500.0,0.00041643,120]
[336730173,1725085333987,-531.38,0.00041643,120]
[336730174,1725085334043,-1554.54,0.00041643,120]
[336730175,1725085334098,-1271.21,0.00041643,120]
[336730176,1725085334153,-506.46,0.00041643,120]
[336730177,1725085334208,-500.0,0.00041643,120]
[336730178,1725085334263,-500.0,0.00041643,120]
[336730179,1725085334321,-500.0,0.00041643,120]
[336730180,1725085334380,-525.09,0.00041643,120]
[336730181,1725085334440,-917.3,0.00041643,120]
[336730182,1725085334494,-500.0,0.00041643,120]
[336730183,1725085334548,-500.0,0.00041643,120]
[336730184,1725085334602,-500.0,0.00041643,120]
[336730185,1725085334658,-996.95,0.00041643,120]
[336730186,1725085334713,-696.4,0.00041643,120]
[336730187,1725085334769,-500.0,0.00041643,120]
[336730188,1725085334822,-803.74,0.00041643,120]
[336730189,1725085334881,-748.83,0.00041643,120]
[336730190,1725085334935,-500.0,0.00041643,120]
[336730191,1725085334989,-568.05,0.00041643,120]
[336730192,1725085335042,-1168.88,0.00041643,120]
[336730193,1725085335095,-761.86,0.00041643,120]
[336730194,1725085335149,-991.52,0.00041643,120]
[336730195,1725085335205,-500.0,0.00041643,120]
[336730196,1725085335260,-500.0,0.00041643,120]
[336730197,1725085335318,-1384.4,0.00041643,120]
[336730198,1725085335373,-731.6,0.00041643,120]
[336730199,1725085335430,-500.0,0.00041643,120]
[336730200,1725085335484,-2458.49,0.00041643,120]
[336730201,1725085335536,-500.0,0.00041643,120]
[336730202,1725085335587,-500.0,0.00041643,120]
[336730203,1725085335639,-540.27,0.00041643,120]
[336730204,1725085335694,-500.0,0.00041643,120]
[336730205,1725085335748,-500.0,0.00041643,120]
[336730206,1725085335802,-500.0,0.00041643,120]
[336730207,1725085335856,-2118.23,0.00041643,120]
[336730208,1725085335910,-600.38,0.00041643,120]
[336730209,1725085335965,-522.69,0.00041643,120]
[336730210,1725085336021,-1210.64,0.00041643,120]
[336730211,1725085336074,-500.0,0.00041643,120]
[336730212,1725085336127,-500.0,0.00041643,120]
[336730213,1725085336180,-500.0,0.00041643,120]
[336730214,1725085336233,-1856.52,0.00041643,120]
[336730215,1725085336289,-500.0,0.00041643,120]
[336730216,1725085336344,-500.0,0.00041643,120]
[336730217,1725085336401,-500.0,0.00041643,120]
[336730218,1725085336458,-856.67,0.00041643,120]
[336730219,1725085336513,-1905.46,0.00041643,120]
[336730220,1725085336730,-1521.24,0.00041643,120]
[336730221,1725085336790,-500.0,0.00041643,120]
[336730222,1725085336843,-547.37,0.00041643,120]
[336730223,1725085336897,-500.0,0.00041643,120]
[336730224,1725085336948,-660.11,0.00041643,120]
[336730225,1725085336997,-2325.34,0.00041643,120]
[336730226,1725085337046,-501.74,0.00041643,120]
[336730227,1725085337098,-849.88,0.00041643,120]
[336730228,1725085337147,-2388.65,0.00041643,120]
[336730229,1725085337196,-500.0,0.00041643,120]
[336730230,1725085337245,-2070.59,0.00041643,120]
[336730231,1725085337294,-500.0,0.00041643,120]
[336730232,1725085337344,-1982.62,0.00041643,120]